bitfinex-derivatives/quotes_BNBF0:USTF0_20230901
["timestamp","ask_amount","ask_price","bid_price","bid_amount"]
[1693546473138,0.07567052,215.07,214.23,0.17085525]
[1693546473340,0.07567052,215.06,214.23,0.17085525]
[1693546474443,0.07567052,215.05,214.23,0.17085525]
[1693546475744,0.07567052,215.04,214.23,0.17085525]
[1693546476247,0.07567052,215.05,214.23,0.17085525]
[1693546476543,0.07567052,215.04,214.23,0.17085525]
[1693546476744,0.07567052,215.02,214.23,0.17085525]
[1693546479147,0.07567052,215.03,214.23,0.17085525]
[1693546481348,0.50312071,215.08,214.23,0.17085525]
[1693546481349,0.07567052,215.04,214.23,0.17085525]
[1693546484154,0.07567052,215.05,214.23,0.17085525]
[1693546486049,0.07567052,215.06,214.23,0.17085525]
[1693546487352,0.07567052,215.07,214.23,0.17085525]
[1693546487957,0.07567052,215.06,214.23,0.17085525]
[1693546488257,0.07567052,215.07,214.23,0.17085525]
[1693546489452,0.07567052,215.08,214.23,0.17085525]
[1693546490259,0.15093621,215.1,214.23,0.17085525]
[1693546490260,0.07567052,215.09,214.23,0.17085525]
[1693546492256,0.07567052,215.1,214.23,0.17085525]
[1693546493158,0.07567052,215.11,214.23,0.17085525]
[1693546494258,0.07567052,215.12,214.23,0.17085525]
[1693546495360,0.07567052,215.13,214.23,0.17085525]
[1693546495763,0.07567052,215.08,214.23,0.17085525]
[1693546496063,0.07567052,215.07,214.23,0.17085525]
[1693546496263,0.07567052,215.08,214.23,0.17085525]
[1693546497259,0.07567052,215.09,214.23,0.17085525]
[1693546498363,0.50312071,215.14,214.23,0.17085525]
[1693546498364,0.07567052,215.1,214.23,0.17085525]
[1693546499164,0.07567052,215.09,214.23,0.17085525]
[1693546499364,0.07567052,215.1,214.23,0.17085525]
[1693546503565,0.07567052,215.09,214.23,0.17085525]
[1693546504267,0.07567052,215.08,214.23,0.17085525]
[1693546505668,0.07567052,215.07,214.23,0.17085525]
[1693546506270,0.07567052,215.06,214.23,0.17085525]
[1693546506568,0.07567052,215.05,214.23,0.17085525]
[1693546507570,0.07567052,215.04,214.23,0.17085525]
[1693546508072,0.07567052,215.05,214.23,0.17085525]
[1693546508270,0.07567052,215.04,214.23,0.17085525]
[1693546509670,0.15093621,215.06,214.23,0.17085525]
[1693546509671,0.07567052,215.03,214.23,0.17085525]
[1693546510566,0.07567052,215.02,214.23,0.17085525]
[1693546513873,0.07567052,215.01,214.23,0.17085525]
[1693546514169,0.07567052,215.02,214.23,0.17085525]
[1693546514369,0.07567052,215.01,214.23,0.17085525]
[1693546516375,0.07567052,215.0,214.23,0.17085525]
[1693546518269,0.07567052,214.99,214.23,0.17085525]
[1693546520077,0.07567052,214.98,214.23,0.17085525]
[1693546523283,0.07567052,214.97,214.23,0.17085525]
[1693546523482,0.07567052,214.98,214.23,0.17085525]
[1693546525184,0.07567052,214.97,214.23,0.17085525]
[1693546527085,0.07567052,214.96,214.23,0.17085525]
[1693546527287,0.07567052,214.97,214.23,0.17085525]
[1693546527486,0.07567052,214.96,214.23,0.17085525]
[1693546529179,0.07567052,214.95,214.23,0.17085525]
[1693546530188,0.07567052,214.93,214.23,0.17085525]
[1693546532088,0.07567052,214.94,214.23,0.17085525]
[1693546533086,0.07567052,214.95,214.23,0.17085525]
[1693546535093,0.07567052,214.96,214.23,0.17085525]
[1693546538298,0.07567052,214.97,214.23,0.17085525]
[1693546540500,0.15093621,215.0,214.23,0.17085525]
[1693546540501,0.07567052,214.98,214.23,0.17085525]
[1693546542402,0.07567052,214.99,214.23,0.17085525]
[1693546544205,0.07567052,215.0,214.23,0.17085525]
[1693546545105,0.07567052,215.01,214.23,0.17085525]
[1693546547207,0.07567052,215.02,214.23,0.17085525]
[1693546548107,0.07567052,215.03,214.23,0.17085525]
[1693546552714,0.07567052,215.04,214.23,0.17085525]
[1693546556408,0.07567052,215.03,214.23,0.17085525]
[1693546563511,0.07567052,215.04,214.23,0.17085525]
[1693546566618,0.07567052,215.03,214.23,0.17085525]
[1693546572519,0.07567052,215.04,214.23,0.17085525]
[1693546574317,0.07567052,215.03,214.23,0.17085525]
[1693546574721,0.07567052,215.04,214.23,0.17085525]
[1693546575323,0.07567052,215.03,214.23,0.17085525]
[1693546588727,0.07567052,215.04,214.23,0.17085525]
[1693546588925,0.07567052,215.03,214.23,0.17085525]
[1693546602239,0.07567052,215.02,214.23,0.17085525]
[1693546602639,0.07567052,215.03,214.23,0.17085525]
[1693546634758,0.07567052,215.02,214.23,0.17085525]
[1693546653966,0.07567052,214.99,214.23,0.17085525]
[1693546654770,0.07567052,215.0,214.23,0.17085525]
[1693546655668,0.07567052,215.01,214.23,0.17085525]
[1693546658671,0.07567052,215.02,214.23,0.17085525]
[1693546662672,0.07567052,215.03,214.23,0.17085525]
[1693546680784,0.07567052,215.02,214.23,0.17085525]
[1693546685788,0.07567052,215.01,214.23,0.17085525]
[1693546687991,0.07567052,215.0,214.23,0.17085525]
[1693546690690,3.87313486,215.37,214.23,0.17085525]
[1693546690891,0.07552751,215.0,214.23,0.17085525]
[1693546697696,0.07552751,214.99,214.23,0.17085525]
[1693546735721,0.07552751,214.94,214.23,0.17085525]
[1693546736322,0.07552751,214.96,214.23,0.17085525]
[1693546737324,0.07552751,214.97,214.23,0.17085525]
[1693546738218,0.07552751,214.98,214.23,0.17085525]
[1693546741126,0.07552751,214.99,214.23,0.17085525]
[1693546744529,0.07552751,215.0,214.23,0.17085525]
[1693546762146,0.07552751,214.99,214.23,0.17085525]
[1693546766342,0.50351678,215.03,214.23,0.17085525]
[1693546766343,0.07552751,214.98,214.23,0.17085525]
[1693546768247,0.07552751,214.97,214.23,0.17085525]
[1693546769348,0.07552751,214.96,214.23,0.17085525]
[1693546770353,0.07552751,214.95,214.23,0.17085525]
[1693546771552,0.0738526,214.95,214.23,0.17085525]
[1693546774853,0.15105503,214.97,214.23,0.17085525]
[1693546782863,0.15105503,215.02,214.23,0.17085525]
[1693546783062,0.15105503,215.03,214.23,0.17085525]
[1693546783563,0.15105503,215.05,214.23,0.17085525]
[1693546784462,0.15105503,215.06,214.23,0.17085525]
[1693546785564,1.00703356,215.12,214.23,0.17085525]
[1693546785565,0.15105503,215.07,214.23,0.17085525]
[1693546786464,0.15105503,215.08,214.23,0.17085525]
[1693546788571,0.15105503,215.09,214.23,0.17085525]
[1693546793466,0.15105503,215.08,214.23,0.17085525]
[1693546794273,0.15105503,215.09,214.23,0.17085525]
[1693546794572,0.15105503,215.08,214.23,0.17085525]
[1693546797067,0.15105503,215.15,214.23,0.17085525]
[1693546797271,0.15105503,215.16,214.23,0.17085525]
[1693546797470,0.15105503,215.15,214.23,0.17085525]
[1693546798372,0.15105503,215.14,214.23,0.17085525]
[1693546798572,0.15105503,215.13,214.23,0.17085525]
[1693546799273,0.15105503,215.12,214.23,0.17085525]
[1693546799474,0.15105503,215.11,214.23,0.17085525]
[1693546801875,0.15105503,215.1,214.23,0.17085525]
[1693546803475,0.15105503,215.08,214.23,0.17085525]
[1693546804475,0.15105503,215.07,214.23,0.17085525]
[1693546804975,0.15105503,215.08,214.23,0.17085525]
[1693546805374,0.15105503,215.07,214.23,0.17085525]
[1693546806277,0.15105503,215.06,214.23,0.17085525]
[1693546806480,0.15105503,215.05,214.23,0.17085525]
[1693546807370,0.15105503,215.04,214.23,0.17085525]
[1693546808378,0.15105503,215.03,214.23,0.17085525]
[1693546809279,0.15105503,215.02,214.23,0.17085525]
[1693546810280,0.15105503,215.01,214.23,0.17085525]
[1693546811280,0.15105503,215.0,214.23,0.17085525]
[1693546812180,0.15105503,214.99,214.23,0.17085525]
[1693546813382,0.15105503,214.98,214.23,0.17085525]
[1693546814383,0.15105503,214.97,214.23,0.17085525]
[1693546815285,0.15105503,214.96,214.23,0.17085525]
[1693546816288,0.15105503,214.95,214.23,0.17085525]
[1693546816485,0.15105503,214.94,214.23,0.17085525]
[1693546817386,0.15105503,214.93,214.23,0.17085525]
[1693546819285,0.15105503,214.92,214.23,0.17085525]
[1693546822388,0.15105503,214.91,214.23,0.17085525]
[1693546825290,0.15105503,214.9,214.23,0.17085525]
[1693546828395,0.15105503,214.89,214.23,0.17085525]
[1693546829495,0.15105503,214.9,214.23,0.17085525]
[1693546829692,0.15105503,214.89,214.23,0.17085525]
[1693546830497,0.15105503,214.88,214.23,0.17085525]
[1693546831497,0.15105503,214.85,214.23,0.17085525]
[1693546832593,0.15105503,214.86,214.23,0.17085525]
[1693546833798,0.15105503,214.87,214.23,0.17085525]
[1693546834397,0.15105503,214.88,214.23,0.17085525]
[1693546835198,0.50351678,214.9,214.23,0.17085525]
[1693546835199,0.15105503,214.87,214.23,0.17085525]
[1693546835399,0.15105503,214.89,214.23,0.17085525]
[1693546836498,0.50351678,214.92,214.23,0.17085525]
[1693546836499,0.15105503,214.9,214.23,0.17085525]
[1693546837502,0.15105503,214.91,214.23,0.17085525]
[1693546838402,0.15105503,214.93,214.23,0.17085525]
[1693546839502,0.15105503,214.94,214.23,0.17085525]
[1693546840298,0.15105503,214.95,214.23,0.17085525]
[1693546840499,0.15105503,214.96,214.23,0.17085525]
[1693546841405,0.15105503,214.98,214.23,0.17085525]
[1693546842303,0.15105503,214.99,214.23,0.17085525]
[1693546842504,0.15105503,215.01,214.23,0.17085525]
[1693546843606,0.15105503,215.02,214.23,0.17085525]
[1693546845506,0.15105503,215.03,214.23,0.17085525]
[1693546846508,0.15105503,215.04,214.23,0.17085525]
[1693546847809,0.15105503,215.05,214.23,0.17085525]
[1693546848510,0.15105503,215.06,214.23,0.17085525]
[1693546849413,0.15105503,215.07,214.23,0.17085525]
[1693546850413,0.15105503,215.08,214.23,0.17085525]
[1693546850607,0.15105503,215.09,214.23,0.17085525]
[1693546851515,0.15105503,215.1,214.23,0.17085525]
[1693546852413,0.15105503,215.12,214.23,0.17085525]
[1693546859522,0.15105503,215.11,214.23,0.17085525]
[1693546859921,0.15105503,215.12,214.23,0.17085525]
[1693546860223,0.15105503,215.11,214.23,0.17085525]
[1693546860418,0.15105503,215.12,214.23,0.17085525]
[1693546860922,0.15105503,215.11,214.23,0.17085525]
[1693546874237,0.15105503,215.12,214.23,0.17085525]
[1693546891546,0.07563452,215.1,214.23,0.17085525]
[1693546910452,0.07563452,215.09,214.23,0.17085525]
[1693546910958,0.07563452,215.1,214.23,0.17085525]
[1693546912358,0.07563452,215.09,214.23,0.17085525]
[1693546915159,0.07563452,215.1,214.23,0.17085525]
[1693546917360,0.07563452,215.09,214.23,0.17085525]
[1693546922964,0.07563452,215.1,214.23,0.17085525]
[1693546923466,0.07563452,215.09,214.23,0.17085525]
[1693546933373,0.07563452,215.1,214.23,0.17085525]
[1693546935477,0.07563452,215.09,214.23,0.17085525]
[1693546935674,0.07563452,215.03,214.23,0.17085525]
[1693546936370,0.07563452,215.06,214.23,0.17085525]
[1693546937278,0.07563452,215.07,214.23,0.17085525]
[1693546938378,0.07563452,215.08,214.23,0.17085525]
[1693546939675,0.07563452,215.09,214.23,0.17085525]
[1693546939976,0.15105503,215.11,214.23,0.17085525]
[1693546940174,5.57175688,217.45,214.23,0.17085525]
[1693546940376,0.15076435,215.11,214.23,0.17085525]
[1693546940581,0.07538217,215.09,214.23,0.17085525]
[1693546941278,0.15076435,215.11,214.23,0.17085525]
[1693546945983,0.07528579,215.08,214.23,0.17085525]
[1693546946482,0.07528579,215.07,214.23,0.17085525]
[1693546948184,0.07528579,215.06,214.23,0.17085525]
[1693546951486,0.07528579,215.05,214.23,0.17085525]
[1693546954585,0.07528579,215.04,214.23,0.17085525]
[1693546957394,0.07528579,215.03,214.23,0.17085525]
[1693546961397,0.07528579,215.02,214.23,0.17085525]
[1693546965205,0.07528579,215.01,214.23,0.17085525]
[1693546967407,0.07528579,215.0,214.23,0.17085525]
[1693546968306,0.07528579,214.99,214.23,0.17085525]
[1693546969400,0.07528579,214.98,214.23,0.17085525]
[1693546969603,0.07528579,214.99,214.23,0.17085525]
[1693546969804,0.07528579,214.98,214.23,0.17085525]
[1693546970402,0.07528579,214.96,214.23,0.17085525]
[1693546974709,0.07528579,214.97,214.23,0.17085525]
[1693546977512,0.07528579,214.98,214.23,0.17085525]
[1693546979614,0.07528579,214.99,214.23,0.17085525]
[1693546982210,1.00381056,215.07,214.23,0.17085525]
[1693546982211,0.07528579,215.0,214.23,0.17085525]
[1693546983418,0.07528579,215.01,214.23,0.17085525]
[1693546985915,0.15076435,215.04,214.23,0.17085525]
[1693546985916,0.07528579,215.02,214.23,0.17085525]
[1693546987324,0.07528579,215.03,214.23,0.17085525]
[1693546988420,0.07528579,215.04,214.23,0.17085525]
[1693547009634,0.07528579,215.03,214.23,0.17085525]
[1693547013228,0.07528579,215.08,214.23,0.17085525]
[1693547013433,0.07528579,215.09,214.23,0.17085525]
[1693547013836,0.07528579,215.12,214.23,0.17085525]
[1693547014030,0.07528579,215.11,214.23,0.17085525]
[1693547014836,0.07528579,215.12,214.23,0.17085525]
[1693547016834,0.07528579,215.13,214.23,0.17085525]
[1693547019542,0.07528579,215.14,214.23,0.17085525]
[1693547020938,0.07528579,215.15,214.23,0.17085525]
[1693547021740,0.15076435,215.17,214.23,0.17085525]
[1693547021741,0.07528579,215.14,214.23,0.17085525]
[1693547022141,0.07528579,215.15,214.23,0.17085525]
[1693547025637,0.07528579,215.14,214.23,0.17085525]
[1693547028639,0.07528579,215.13,214.23,0.17085525]
[1693547029039,0.15076435,215.15,214.23,0.17085525]
[1693547029040,0.07528579,215.07,214.23,0.17085525]
[1693547033045,0.07528579,215.08,214.23,0.17085525]
[1693547033446,0.07528579,215.07,214.23,0.17085525]
[1693547033646,0.07528579,215.08,214.23,0.17085525]
[1693547034242,0.07528579,215.07,214.23,0.17085525]
[1693547034844,0.07528579,215.08,214.23,0.17085525]
[1693547035242,0.07528579,215.07,214.23,0.17085525]
[1693547035645,0.07528579,215.08,214.23,0.17085525]
[1693547039955,0.07528579,215.09,214.23,0.17085525]
[1693547041258,0.07528579,215.08,214.23,0.17085525]
[1693547043059,0.07528579,215.09,214.23,0.17085525]
[1693547046363,0.07528579,215.15,214.23,0.17085525]
[1693547047767,0.07528579,215.14,214.23,0.17085525]
[1693547051766,0.07528579,215.13,214.23,0.17085525]
[1693547057572,0.07528579,215.12,214.23,0.17085525]
[1693547057773,0.07528579,215.13,214.23,0.17085525]
[1693547057964,0.07528579,215.12,214.23,0.17085525]
[1693547062874,0.07528579,215.13,214.23,0.17085525]
[1693547063577,0.07528579,215.12,214.23,0.17085525]
[1693547063773,0.07528579,215.13,214.23,0.17085525]
[1693547064881,0.07528579,215.12,214.23,0.17085525]
[1693547066274,0.07528579,215.13,214.23,0.17085525]
[1693547068483,0.07537725,215.13,214.23,0.17085525]
[1693547068881,0.07537725,215.12,214.23,0.17085525]
[1693547072779,0.07537725,215.11,214.23,0.17085525]
[1693547074884,0.07537725,215.1,214.23,0.17085525]
[1693547077487,0.07537725,215.09,214.23,0.17085525]
[1693547078882,0.07537725,215.08,214.23,0.17085525]
[1693547079788,0.07537725,215.06,214.23,0.17085525]
[1693547080889,0.07537725,215.04,214.23,0.17085525]
[1693547083888,0.07537725,215.03,214.23,0.17085525]
[1693547088393,0.07537725,215.02,214.23,0.17085525]
[1693547089792,0.07537725,215.03,214.23,0.17085525]
[1693547090599,0.07537725,215.04,214.23,0.17085525]
[1693547091698,0.50251505,215.09,214.23,0.17085525]
[1693547091699,0.07537725,215.05,214.23,0.17085525]
[1693547092899,0.07537725,215.06,214.23,0.17085525]
[1693547093800,0.07537725,215.07,214.23,0.17085525]
[1693547094197,0.07537725,215.06,214.23,0.17085525]
[1693547094498,0.07537725,215.07,214.23,0.17085525]
[1693547095902,0.07537725,215.08,214.23,0.17085525]
[1693547096701,0.07537725,215.09,214.23,0.17085525]
[1693547097698,0.07537725,215.11,214.23,0.17085525]
[1693547110213,0.07537725,215.12,214.23,0.17085525]
[1693547121522,0.07537725,215.11,214.23,0.17085525]
[1693547123719,0.07537725,215.12,214.23,0.17085525]
[1693547126523,0.07537725,215.11,214.23,0.17085525]
[1693547127324,0.07537725,215.12,214.23,0.17085525]
[1693547128024,0.07537725,215.11,214.23,0.17085525]
[1693547133326,0.07537725,215.12,214.23,0.17085525]
[1693547133527,0.07537725,215.11,214.23,0.17085525]
[1693547158054,0.07537725,215.12,214.23,0.17085525]
[1693547168963,0.07537725,215.11,214.23,0.17085525]
[1693547176163,0.07537725,215.12,214.23,0.17085525]
[1693547178666,0.07537725,215.11,214.23,0.17085525]
[1693547180674,2.51257528,215.25,214.23,0.17085525]
[1693547180871,0.07575417,215.11,214.23,0.17085525]
[1693547181170,0.07575417,215.12,214.23,0.17085525]
[1693547181370,0.07575417,215.11,214.23,0.17085525]
[1693547182363,0.07575417,215.12,214.23,0.17085525]
[1693547199177,0.07575417,215.05,214.23,0.17085525]
[1693547199379,0.07575417,215.04,214.23,0.17085525]
[1693547199680,0.07575417,215.06,214.23,0.17085525]
[1693547200680,0.07575417,215.07,214.23,0.17085525]
[1693547201481,0.07575417,215.08,214.23,0.17085525]
[1693547201683,0.07575417,215.09,214.23,0.17085525]
[1693547204684,0.07575417,215.08,214.23,0.17085525]
[1693547205686,0.07575417,215.07,214.23,0.17085525]
[1693547206584,0.07575417,215.09,214.23,0.17085525]
[1693547209586,0.07575417,215.08,214.23,0.17085525]
[1693547211580,0.07575417,215.07,214.23,0.17085525]
[1693547214493,0.07575417,215.06,214.23,0.17085525]
[1693547215292,0.07575417,215.07,214.23,0.17085525]
[1693547217400,0.07575417,215.06,214.23,0.17085525]
[1693547224300,0.07575417,215.11,214.23,0.17085525]
[1693547225399,0.07575417,215.12,214.23,0.17085525]
[1693547231603,0.07575417,215.11,214.23,0.17085525]
[1693547232399,0.07575417,215.12,214.23,0.17085525]
[1693547239804,0.07575417,215.11,214.23,0.17085525]
[1693547244616,0.07575417,215.1,214.23,0.17085525]
[1693547247617,0.07575417,215.09,214.23,0.17085525]
[1693547250619,0.07575417,215.08,214.23,0.17085525]
[1693547252523,0.07575417,215.07,214.23,0.17085525]
[1693547253725,0.07575417,215.06,214.23,0.17085525]
[1693547254724,0.07575417,215.05,214.23,0.17085525]
[1693547256927,0.07575417,215.06,214.23,0.17085525]
[1693547257128,0.07575417,215.05,214.23,0.17085525]
[1693547258531,0.07575417,215.02,214.23,0.17085525]
[1693547259232,0.07575417,215.03,214.23,0.17085525]
[1693547260533,0.07575417,215.04,214.23,0.17085525]
[1693547262428,0.07575417,215.05,214.23,0.17085525]
[1693547263731,2.5251393,215.18,214.23,0.17085525]
[1693547263732,0.07575417,215.06,214.23,0.17085525]
[1693547264734,1.01005572,215.14,214.23,0.17085525]
[1693547264735,0.07575417,215.07,214.23,0.17085525]
[1693547265534,0.07575417,215.08,214.23,0.17085525]
[1693547267636,0.07575417,215.09,214.23,0.17085525]
[1693547270535,0.07575417,215.1,214.23,0.17085525]
[1693547271837,0.07575417,215.11,214.23,0.17085525]
[1693547273634,0.07575417,215.12,214.23,0.17085525]
[1693547274542,2.5251393,215.26,214.23,0.17085525]
[1693547274543,0.07575417,215.13,214.23,0.17085525]
[1693547275635,0.07575417,215.14,214.23,0.17085525]
[1693547293447,0.07575417,215.13,214.23,0.17085525]
[1693547294451,0.07575417,215.14,214.23,0.17085525]
[1693547304256,0.07575417,215.21,214.23,0.17085525]
[1693547305155,0.07575417,215.22,214.23,0.17085525]
[1693547305360,0.07575417,215.23,214.23,0.17085525]
[1693547306259,0.07575417,215.24,214.23,0.17085525]
[1693547308158,0.07575417,215.25,214.23,0.17085525]
[1693547309358,0.07575417,215.26,214.23,0.17085525]
[1693547309954,0.07575417,215.25,214.23,0.17085525]
[1693547310261,0.07575417,215.26,214.23,0.17085525]
[1693547313260,0.07575417,215.25,214.23,0.17085525]
[1693547316260,0.07575417,215.24,214.23,0.17085525]
[1693547319169,0.07575417,215.23,214.23,0.17085525]
[1693547319469,0.07575417,215.24,214.23,0.17085525]
[1693547320264,0.07575417,215.23,214.23,0.17085525]
[1693547322469,0.07575417,215.22,214.23,0.17085525]
[1693547324370,0.07575417,215.21,214.23,0.17085525]
[1693547327275,0.07575417,215.2,214.23,0.17085525]
[1693547330078,0.07575417,215.19,214.23,0.17085525]
[1693547333381,0.07575417,215.18,214.23,0.17085525]
[1693547335272,0.15150835,215.2,214.23,0.17085525]
[1693547335273,0.07575417,215.17,214.23,0.17085525]
[1693547335473,0.15150835,215.2,214.23,0.17085525]
[1693547335474,0.07575417,215.18,214.23,0.17085525]
[1693547335979,0.07575417,215.17,214.23,0.17085525]
[1693547337179,0.07575417,215.16,214.23,0.17085525]
[1693547338180,0.07575417,215.15,214.23,0.17085525]
[1693547342983,0.50502786,215.2,214.23,0.17085525]
[1693547342984,0.07575417,215.16,214.23,0.17085525]
[1693547346588,0.15150835,215.19,214.23,0.17085525]
[1693547346589,0.07575417,215.17,214.23,0.17085525]
[1693547349290,0.07575417,215.18,214.23,0.17085525]
[1693547350885,0.07575417,215.19,214.23,0.17085525]
[1693547352287,0.07575417,215.2,214.23,0.17085525]
[1693547359594,0.07575417,215.21,214.23,0.17085525]
[1693547359788,0.07575417,215.2,214.23,0.17085525]
[1693547359988,0.07575417,215.21,214.23,0.17085525]
[1693547370097,0.07575417,215.2,214.23,0.17085525]
[1693547372006,0.07575417,215.24,214.23,0.17085525]
[1693547372207,0.07575417,215.29,214.23,0.17085525]
[1693547372603,0.07575417,215.33,214.23,0.17085525]
[1693547373607,0.07575417,215.34,214.23,0.17085525]
[1693547374510,0.07575417,215.36,214.23,0.17085525]
[1693547375312,0.07575417,215.35,214.23,0.17085525]
[1693547376706,1.01005572,215.43,214.23,0.17085525]
[1693547376707,0.07575417,215.34,214.23,0.17085525]
[1693547377517,0.07575417,215.33,214.23,0.17085525]
[1693547378517,0.07575417,215.32,214.23,0.17085525]
[1693547380416,0.07575417,215.31,214.23,0.17085525]
[1693547381217,0.07575417,215.3,214.23,0.17085525]
[1693547381412,0.07575417,215.31,214.23,0.17085525]
[1693547381611,0.07575417,215.3,214.23,0.17085525]
[1693547382419,0.07575417,215.31,214.23,0.17085525]
[1693547382718,0.07575417,215.3,214.23,0.17085525]
[1693547384221,0.07575417,215.29,214.23,0.17085525]
[1693547385422,0.07575417,215.28,214.23,0.17085525]
[1693547385622,0.07575417,215.29,214.23,0.17085525]
[1693547386217,0.07575417,215.28,214.23,0.17085525]
[1693547386922,0.07575417,215.27,214.23,0.17085525]
[1693547388124,0.07575417,215.21,214.23,0.17085525]
[1693547388325,0.07575417,215.2,214.23,0.17085525]
[1693547389619,0.07575417,215.21,214.23,0.17085525]
[1693547391225,0.07575417,215.2,214.23,0.17085525]
[1693547391627,0.07575417,215.21,214.23,0.17085525]
[1693547392226,0.07575417,215.2,214.23,0.17085525]
[1693547393031,0.07575417,215.21,214.23,0.17085525]
[1693547398433,0.07575417,215.2,214.23,0.17085525]
[1693547398932,0.07575417,215.21,214.23,0.17085525]
[1693547399135,0.07575417,215.2,214.23,0.17085525]
[1693547401937,0.07575417,215.19,214.23,0.17085525]
[1693547403138,2.5251393,215.32,214.23,0.17085525]
[1693547403441,0.0754209,215.19,214.23,0.17085525]
[1693547403941,0.0754209,215.2,214.23,0.17085525]
[1693547405541,0.0754209,215.19,214.23,0.17085525]
[1693547408545,0.0754209,215.2,214.23,0.17085525]
[1693547413151,0.0754209,215.21,214.23,0.17085525]
[1693547413951,0.0754209,215.2,214.23,0.17085525]
[1693547414747,0.0754209,215.21,214.23,0.17085525]
[1693547419455,0.0754209,215.2,214.23,0.17085525]
[1693547421556,0.0754209,215.19,214.23,0.17085525]
[1693547422555,0.0754209,215.17,214.23,0.17085525]
[1693547424561,0.0754209,215.18,214.23,0.17085525]
[1693547427461,0.0754209,215.19,214.23,0.17085525]
[1693547429566,0.0754209,215.2,214.23,0.17085525]
[1693547431468,0.0754209,215.21,214.23,0.17085525]
[1693547434869,0.0754209,215.22,214.23,0.17085525]
[1693547437468,0.0754209,215.23,214.23,0.17085525]
[1693547438370,0.0754209,215.22,214.23,0.17085525]
[1693547438571,0.0754209,215.23,214.23,0.17085525]
[1693547439973,0.0754209,215.22,214.23,0.17085525]
[1693547440570,0.0754209,215.23,214.23,0.17085525]
[1693547471598,0.15084181,215.25,214.23,0.17085525]
[1693547471599,0.0754209,215.22,214.23,0.17085525]
[1693547478305,0.07583177,215.22,214.23,0.17085525]
[1693547488608,0.07583177,215.23,214.23,0.17085525]
[1693547504322,0.15166354,215.25,214.23,0.17085525]
[1693547504323,0.07583177,215.22,214.23,0.17085525]
[1693547508226,0.07583177,215.23,214.23,0.17085525]
[1693547513933,0.07583177,215.22,214.23,0.17085525]
[1693547514128,0.07583177,215.23,214.23,0.17085525]
[1693547514330,0.07583177,215.22,214.23,0.17085525]
[1693547514732,0.07583177,215.23,214.23,0.17085525]
[1693547516034,0.07583177,215.22,214.23,0.17085525]
[1693547517335,0.07583177,215.23,214.23,0.17085525]
[1693547522437,0.07583177,215.22,214.23,0.17085525]
[1693547522636,0.07583177,215.23,214.23,0.17085525]
[1693547546756,0.07583177,215.22,214.23,0.17085525]
[1693547555058,0.07583177,215.23,214.23,0.17085525]
[1693547555458,0.07583177,215.22,214.23,0.17085525]
[1693547557462,0.07583177,215.17,214.23,0.17085525]
[1693547557664,0.07583177,215.19,214.23,0.17085525]
[1693547559564,0.07583177,215.2,214.23,0.17085525]
[1693547560759,0.07583177,215.21,214.23,0.17085525]
[1693547562565,0.07583177,215.22,214.23,0.17085525]
[1693547562864,0.07583177,215.21,214.23,0.17085525]
[1693547564661,0.07583177,215.2,214.23,0.17085525]
[1693547565664,0.07583177,215.19,214.23,0.17085525]
[1693547567667,0.07583177,215.18,214.23,0.17085525]
[1693547568465,0.07583177,215.17,214.23,0.17085525]
[1693547569563,0.07583177,215.16,214.23,0.17085525]
[1693547571671,0.07583177,215.15,214.23,0.17085525]
[1693547573277,0.07583177,215.14,214.23,0.17085525]
[1693547574476,0.07583177,215.13,214.23,0.17085525]
[1693547575576,0.07583177,215.12,214.23,0.17085525]
[1693547576679,0.07583177,215.11,214.23,0.17085525]
[1693547578575,0.07583177,215.1,214.23,0.17085525]
[1693547579583,0.07583177,215.09,214.23,0.17085525]
[1693547582182,0.07583177,215.08,214.23,0.17085525]
[1693547584487,0.07583177,215.07,214.23,0.17085525]
[1693547585888,0.07583177,215.06,214.23,0.17085525]
[1693547587088,0.07583177,215.01,214.23,0.17085525]
[1693547587387,0.07583177,215.0,214.23,0.17085525]
[1693547587580,0.50554513,215.04,214.23,0.17085525]
[1693547587581,0.07583177,214.99,214.23,0.17085525]
[1693547587886,0.07583177,214.98,214.23,0.17085525]
[1693547588487,0.07583177,214.97,214.23,0.17085525]
[1693547588788,0.07583177,214.98,214.23,0.17085525]
[1693547588988,0.07583177,214.97,214.23,0.17085525]
[1693547589789,0.07583177,214.96,214.23,0.17085525]
[1693547590588,0.07583177,214.95,214.23,0.17085525]
[1693547590888,0.07583177,214.94,214.23,0.17085525]
[1693547591488,0.07583177,214.93,214.23,0.17085525]
[1693547594894,0.07583177,214.92,214.23,0.17085525]
[1693547595591,0.07583177,214.9,214.23,0.17085525]
[1693547595797,0.07583177,214.89,214.23,0.17085525]
[1693547598098,0.07583177,214.88,214.23,0.17085525]
[1693547598600,0.07583177,214.89,214.23,0.17085525]
[1693547598793,1.01109027,214.96,214.23,0.17085525]
[1693547598794,0.07583177,214.88,214.23,0.17085525]
[1693547599695,0.07583177,214.89,214.23,0.17085525]
[1693547599894,0.15166354,214.9,214.23,0.17085525]
[1693547599895,0.07583177,214.88,214.23,0.17085525]
[1693547605509,0.07583177,214.89,214.23,0.17085525]
[1693547605910,0.07583177,214.88,214.23,0.17085525]
[1693547606510,0.07583177,214.89,214.23,0.17085525]
[1693547610608,0.07583177,214.9,214.23,0.17085525]
[1693547612514,0.07583177,214.91,214.23,0.17085525]